[Event "44th Chess Olympiad Women 2022"]
[Site "Chennai"]
[Date "2022.07.29"]
[Round "1.76"]
[White "Ortez, Andrea"]
[Black "Marusic, Nada"]
[Result "1-0"]
[WhiteElo "1908"]
[BlackElo "1955"]
[Annotator "NA"]
[PlyCount "79"]
[EventDate "2022.??.??"]
[TimeControl "60"]

1. e4 {[%emt 0:00:06]} e5 {[%emt 0:00:05]} 2. Nf3 {[%emt 0:00:26]} Nc6 {
[%emt 0:01:03]} 3. Bb5 {[%emt 0:00:26]} Nf6 {[%emt 0:00:50]} 4. Qe2 {[%emt 0:
00:00]} d6 {[%emt 0:03:33]} 5. c3 {[%emt 0:00:40]} Be7 {[%emt 0:00:30]} 6. d3 {
[%emt 0:02:32]} a6 {[%emt 0:02:47]} 7. Ba4 {[%emt 0:00:17]} O-O {[%emt 0:00:47]
} 8. Bg5 {[%emt 0:00:00]} Bd7 {[%emt 0:03:30]} 9. Nbd2 {[%emt 0:00:00]} b5 {
[%emt 0:00:55]} 10. Bb3 {[%emt 0:00:00]} Rb8 {[%emt 0:03:05]} 11. h3 {[%emt 0:
00:00]} b4 {[%emt 0:04:40]} 12. O-O {[%emt 0:09:03]} d5 {[%emt 0:07:35]} 13.
exd5 {[%emt 0:05:25]} Nxd5 {[%emt 0:08:54]} 14. Bxe7 {[%emt 0:01:13]} Ncxe7 {
[%emt 0:03:10]} 15. Qxe5 {[%emt 0:00:39]} Bc6 {[%emt 0:04:36]} 16. c4 {[%emt 0:
00:00]} Nf6 {[%emt 0:02:23]} 17. d4 {[%emt 0:01:18]} a5 {[%emt 0:04:44]} 18.
Qxa5 {[%emt 0:02:07]} Ra8 {[%emt 0:02:42]} 19. Qxb4 {[%emt 0:00:26]} Nf5 {
[%emt 0:01:36]} 20. Qc5 {[%emt 0:02:20]} Qd7 {[%emt 0:02:41]} 21. Bc2 {[%emt 0:
00:00]} g6 {[%emt 0:02:56]} 22. Bxf5 {[%emt 0:00:51]} gxf5 {[%emt 0:01:27]} 23.
Ne5 {[%emt 0:01:10]} Qd6 {[%emt 0:04:37]} 24. Qxc6 {[%emt 0:02:51]} Qxc6 {
[%emt 0:05:44]} 25. Nxc6 {[%emt 0:00:05]} Rfe8 {[%emt 0:00:47]} 26. Ne5 {
[%emt 0:01:54]} Ra5 {[%emt 0:02:01]} 27. Rfe1 {[%emt 0:00:58]} c5 {[%emt 0:00:
00]} 28. Nb3 {[%emt 0:01:25]} Ra4 {[%emt 0:02:08]} 29. Nxc5 {[%emt 0:00:13]}
Ra7 {[%emt 0:00:49]} 30. a3 {[%emt 0:02:06]} Nh5 {[%emt 0:01:14]} 31. Nc6 {
[%emt 0:00:23]} Raa8 {[%emt 0:01:51]} 32. Ne7+ {[%emt 0:01:07]} Kf8 {[%emt 0:
00:00]} 33. Nd7+ {[%emt 0:02:02]} Kg7 {[%emt 0:00:58]} 34. Nxf5+ {[%emt 0:00:
00]} Kg6 {[%emt 0:04:25]} 35. Nd6 {[%emt 0:03:19]} Red8 {[%emt 0:00:00]} 36.
Ne5+ {[%emt 0:00:11]} Kg7 {[%emt 0:01:02]} 37. Nexf7 {[%emt 0:00:15]} Rd7 {
[%emt 0:00:54]} 38. Re5 {[%emt 0:00:25]} Nf6 {[%emt 0:01:54]} 39. c5 {[%emt 0:
00:00]} Rf8 {[%emt 0:02:41]} 40. Rg5# {[%emt 0:00:19]} 1-0

[Event "44th Chess Olympiad Women 2022"]
[Site "Chennai"]
[Date "2022.07.30"]
[Round "2.1"]
[White "Campos, Maria Jose"]
[Black "Vaishali R"]
[Result "0-1"]
[WhiteElo "2185"]
[BlackElo "2442"]
[Annotator "TA"]
[PlyCount "180"]
[EventDate "2022.??.??"]
[TimeControl "60"]

{[%evp 11,180,-19,-18,-18,0,-16,-15,-22,-22,-19,-19,-19,-10,-22,-10,-33,-46,
-42,-44,-40,-30,-40,-34,-41,-46,-22,-28,-17,-21,-81,-59,-279,-263,-289,-292,
-282,-243,-286,-297,-308,-245,-347,-345,-319,-216,-208,-176,-366,-360,-358,
-364,-363,-363,-362,-201,-204,0,-369,-370,-374,-367,-356,-350,-431,-390,-398,
-378,-359,-364,-354,-323,-376,-272,-491,-489,-816,-801,-780,-779,-675,-674,
-674,-535,-463,-458,-550,-548,-512,-512,-433,-256,-633,-633,-633,-622,-615,
-615,-759,-608,-598,-173,-173,-173,-173,-167,-167,-167,-167,-167,-167,-167,
-167,-167,-167,-167,-167,-167,-167,-167,-167,-167,-181,-181,-181,-181,-181,
-181,-181,-181,-29966,-8,-8,-8,-8,-8,-8,-20,-38,-31,-54,-62,-69,-8,-54,-20,
-181,-181,-181,-181,-29971,-29972,-5824,-181,-181,-181,-181,-181,-181,-181,
-29983,-29984,-29984,-29985,-29985,-29986,-29986,-29987,-29987,-29988,-29988,
-29989]} 1. c4 {[%emt 0:00:25]} Nf6 {[%emt 0:00:47]} 2. g3 {[%emt 0:00:41]} e6
{[%emt 0:00:17]} 3. Bg2 {[%emt 0:00:34]} d5 {[%emt 0:00:11]} 4. Nf3 {[%emt 0:
00:00]} dxc4 {[%emt 0:00:40]} 5. O-O {[%emt 0:02:13]} a6 {[%emt 0:00:28]} 6. a4
{[%emt 0:00:44]} Nc6 {[%emt 0:00:40]} 7. Na3 {[%emt 0:01:00] A13: English
Opening: 1...e6.} Bxa3 {[%emt 0:03:06]} 8. Rxa3 {[%emt 0:00:33]} e5 {[%emt 0:
00:00][%cal Ye6e5,Ye5e4] [#]} 9. b3 $146 {[%emt 0:05:32] The position is equal.
} ({Predecessor:} 9. a5 O-O 10. Qa4 Be6 11. Ng5 Bd7 12. Qxc4 Nd4 13. Bxb7 Bb5
14. Qc5 Rb8 15. Bg2 Nd7 {0-1 (15) Wolfram,B (2228)-Juhasz,K (2356) Austria 2014
}) 9... cxb3 {[%emt 0:07:58]} 10. Rxb3 {[%emt 0:01:19]} O-O $1 {[%emt 0:01:47]}
11. Bb2 {[%emt 0:02:33]} Re8 {[%emt 0:04:46]} 12. Qa1 {[%emt 0:00:00][%cal
Rf3e5]} e4 {[%emt 0:19:56]} 13. Nh4 {[%emt 0:07:10]} (13. Ng5 $5 {[%cal Rb2f6]}
) 13... Na5 $1 {[%emt 0:16:34]} 14. Rb4 {[%emt 0:21:05]} Qxd2 {[%emt 0:13:05]}
15. Bc3 {[%emt 0:00:39] A strong pair of Bishops.} Qg5 {[%emt 0:03:20]} 16.
Bxf6 {[%emt 0:04:41]} Qxf6 {[%emt 0:00:14]} ({Don't play} 16... gxf6 17. Rxe4
Rxe4 18. Bxe4 $11) 17. Qxf6 {[%emt 0:00:17]} gxf6 {[%emt 0:00:00]} 18. Rc1 {
[%emt 0:00:54]} c6 {[%emt 0:06:19]} 19. Bxe4 {[%emt 0:03:56]} Bd7 {[%emt 0:03:
11]} 20. f4 {[%emt 0:08:07]} (20. Bd3 $11 {keeps the balance.}) 20... b5 {
[%emt 0:02:41]} 21. Rc5 $2 {[%emt 0:05:20]} (21. axb5 $15 axb5 22. Bd3) 21...
Nb7 $1 $19 {[%emt 0:04:21]} 22. Rh5 {[%emt 0:01:51] [#]} Rxe4 {[%emt 0:03:07]}
23. Rxe4 {[%emt 0:00:32]} Bg4 {[%emt 0:00:06]} 24. Rh6 {[%emt 0:05:34]} Kg7 {
[%emt 0:00:09]} 25. f5 {[%emt 0:06:00]} Bxe2 {[%emt 0:02:19]} 26. Rxe2 {
[%emt 0:00:31]} (26. Rxh7+ $142 Kxh7 27. Rxe2) 26... Kxh6 {[%emt 0:00:03]
Endgame KRN-KRN} 27. Re7 {[%emt 0:00:16]} Nd8 {[%emt 0:00:28]} ({Weaker is} 
27... bxa4 28. Rxb7 a5 29. Kf2 $16 (29. Rxf7 $2 a3 $19)) 28. Nf3 {[%emt 0:03:
11]} Rb8 {[%emt 0:02:26]} 29. Nd2 $2 {[%emt 0:01:19]} (29. Ra7) 29... bxa4 {
[%emt 0:02:14]} 30. Ra7 {[%emt 0:04:53]} Rb2 {[%emt 0:00:00]} 31. Nc4 {[%emt 0:
01:01]} Rc2 {[%emt 0:00:15]} 32. Ne3 {[%emt 0:00:20]} Re2 {[%emt 0:01:30]} (
32... Rc3 $142 33. Kf2 a3) 33. Nc4 {[%emt 0:02:10]} Rc2 $2 {[%emt 0:00:48]} (
33... Re4 34. Nb6 Kg5 35. Rxa6 Kxf5 36. Nxa4 Ne6) 34. Ne3 {[%emt 0:00:25]} Rc3
{[%emt 0:00:21]} 35. Kf2 {[%emt 0:00:11]} a3 $1 {[%emt 0:00:00][%cal Yd8b7]
And now ...Nb7! would win.} 36. Rxa6 {[%emt 0:00:16]} Nb7 $1 {[%emt 0:00:11]}
37. h4 {[%emt 0:01:36]} Nd6 {[%emt 0:01:16]} 38. Ra4 {[%emt 0:00:00]} Kg7 {
[%emt 0:00:58]} 39. Ke2 {[%emt 0:01:19]} Rb3 {[%emt 0:00:30]} 40. g4 {[%emt 0:
01:40]} h6 {[%emt 0:00:15]} 41. Kd2 {[%emt 0:31:20]} Nb5 {[%emt 0:00:00]} 42.
Nc4 $2 {[%emt 0:00:31]} (42. h5 {was the only defense.}) 42... Rh3 {[%emt 0:00:
00]} 43. h5 {[%emt 0:00:00]} (43. Ne3 $142 Rxh4 44. Ra5) 43... Nc3 {[%emt 0:00:
00]} 44. Ra8 {[%emt 0:00:00]} Ne4+ {[%emt 0:00:00]} 45. Ke2 {[%emt 0:00:00]} a2
{[%emt 0:00:00] ...Nc3+ is the strong threat.} 46. Ne3 {[%emt 0:00:00]} Rh1 {
[%emt 0:00:00]} 47. Nc2 {[%emt 0:00:00] Against a1Q} Rh2+ {[%emt 0:00:00]} 48.
Kd3 {[%emt 0:00:00]} Rd2+ {[%emt 0:00:00]} 49. Kxe4 {[%emt 0:00:00]} Rxc2 {
[%emt 0:00:00] KR-KR} 50. Kd4 {[%emt 0:00:00]} Rg2 {[%emt 0:00:00]} (50... c5+
$142 51. Kd5 c4) 51. Kc5 $2 {[%emt 0:00:00]} (51. Ke3) 51... Rxg4 {[%emt 0:00:
00]} 52. Rxa2 {[%emt 0:00:00]} Rg5 {[%emt 0:00:00]} 53. Rf2 {[%emt 0:00:00]}
Rxh5 {[%emt 0:00:00]} 54. Kxc6 {[%emt 0:00:00]} Rg5 {[%emt 0:00:00]} 55. Kd5 {
[%emt 0:00:00]} h5 $2 {[%emt 0:00:00]} (55... Rg4 {White must now prevent ...
h5.} 56. Rh2 Rf4) 56. Ke4 {[%emt 0:00:00]} Rg4+ {[%emt 0:00:00]} 57. Kf3 {
[%emt 0:00:00]} Kh6 {[%emt 0:00:00]} 58. Ra2 {[%emt 0:00:00]} Kg5 {[%emt 0:00:
00]} 59. Ra7 {[%emt 0:00:00]} Rf4+ {[%emt 0:00:00]} 60. Kg2 {[%emt 0:00:00]}
Kxf5 {[%emt 0:00:00]} 61. Rxf7 {[%emt 0:00:00]} Kg4 {[%emt 0:00:00]} 62. Rg7+ {
[%emt 0:00:00]} Kh4 $1 {[%emt 0:00:00]} 63. Rf7 {[%emt 0:00:00]} Rf5 {[%emt 0:
00:00]} 64. Rf8 {[%emt 0:00:00]} Kg4 {[%emt 0:00:00]} 65. Ra8 {[%emt 0:00:00]}
h4 {[%emt 0:00:00]} 66. Rh8 {[%emt 0:00:29]} Rb5 {[%emt 0:00:00] aiming for ...
Rb2+.} 67. Rg8+ {[%emt 0:00:16]} Rg5 {[%emt 0:00:00]} 68. Rf8 {[%emt 0:00:33]}
f5 {[%emt 0:00:20][%cal Yf6f5,Yf5f4]} 69. Rh8 {[%emt 0:03:16]} f4 {[%emt 0:02:
18]} 70. Rh7 $2 {[%emt 0:05:36] [#]} (70. Rb8 $19) 70... Ra5 $2 {[%emt 0:01:33]
} (70... f3+ $1 {mates} 71. Kf2 h3 72. Rh8 Rg6 73. Rh7 Rg8 74. Rh6 Rc8 75. Rg6+
Kh5 76. Rg7 h2 77. Rd7 Rc1 78. Rh7+ Kg4 79. Rg7+ Kf5 80. Rh7 h1=Q 81. Rxh1 Rxh1
82. Kxf3 Re1 83. Kf2 Re8 84. Kg3 Re3+ 85. Kh2 Kg4 86. Kg2 Re2+ 87. Kf1 Kf3 88.
Kg1 Re1+ 89. Kh2 Rc1 90. Kh3 Rh1#) 71. Rg7+ $11 {[%emt 0:00:14]} Kf5 {[%emt 0:
00:26]} (71... Kh5 $5 72. Kf3 Rf5 $11) 72. Kh3 {[%emt 0:02:04]} Ra1 {[%emt 0:
00:32]} 73. Kg2 $1 {[%emt 0:01:41]} Ra2+ {[%emt 0:00:14]} 74. Kf3 $1 {[%emt 0:
01:19]} Ra3+ {[%emt 0:00:41]} 75. Kf2 {[%emt 0:00:13]} Rg3 {[%emt 0:06:31]} 76.
Rf7+ {[%emt 0:00:27]} Kg5 {[%emt 0:00:00]} (76... Ke4 $15 77. Re7+ Kf5) 77. Rf8
{[%emt 0:00:24]} Ra3 {[%emt 0:00:00]} 78. Kg2 $2 {[%emt 0:00:34] [#]} (78. Rg8+
$11 {and White is okay.} Kf5 79. Rf8+ Ke5 80. Re8+ Kf6 81. Rh8) 78... h3+ $1
$19 {[%emt 0:01:17]} 79. Kf2 {[%emt 0:02:13]} Ra6 {[%emt 0:02:16] Threatens to
win with ...Rg6.} 80. Rg8+ $2 {[%emt 0:00:55]} (80. Kg1 $19) 80... Rg6 {
[%emt 0:00:11]} 81. Rh8 {[%emt 0:00:00]} Rh6 $2 {[%emt 0:00:39]} (81... Kg4 {
( -> ...Rg5)} 82. Ra8 Rg5) 82. Rg8+ {[%emt 0:00:16]} Kf5 {[%emt 0:00:24]} 83.
Rf8+ {[%emt 0:00:34]} Ke5 {[%emt 0:00:00]} 84. Re8+ {[%emt 0:00:22]} Kf6 {
[%emt 0:00:30]} 85. Re1 $2 {[%emt 0:01:21]} (85. Rb8 $19) 85... h2 {[%emt 0:00:
14] Black mates.} 86. Rh1 {[%emt 0:00:31]} Kf5 {[%emt 0:00:07]} 87. Kf3 {
[%emt 0:00:57]} Rh3+ {[%emt 0:00:10]} 88. Kg2 {[%emt 0:00:25]} Kg4 {[%emt 0:00:
05]} 89. Rxh2 {[%emt 0:00:13]} Rxh2+ {[%emt 0:00:00]} 90. Kxh2 {[%emt 0:00:02]}
Kf3 {[%emt 0:00:05] Weighted Error Value: White=0.51/Black=0.23 (precise)} 0-1

[Event "44th Chess Olympiad Women 2022"]
[Site "Chennai"]
[Date "2022.07.30"]
[Round "2.1"]
[White "Sarquis, Maria Belen"]
[Black "Kulkarni Bhakti"]
[Result "0-1"]
[WhiteElo "2072"]
[BlackElo "2373"]
[Annotator "TA"]
[PlyCount "88"]
[EventDate "2022.??.??"]
[TimeControl "60"]

{[%evp 10,88,28,45,36,16,37,27,18,16,54,37,18,16,26,22,47,-8,0,-24,-15,-71,-77,
-95,-40,-91,11,-64,-73,-75,-3,-8,-4,-76,-71,-71,-67,-74,-76,-74,-78,-76,-66,
-64,-51,-106,-71,-117,-102,-93,-20,-45,0,-96,-82,-104,-99,-87,0,-214,-197,-182,
-113,-128,-114,-123,-89,-241,-220,-259,-237,-280,-270,-377,-369,-601,-592,
-1656,-1650,-2097,-1645]} 1. e4 {[%emt 0:00:03]} e5 {[%emt 0:00:27]} 2. Nf3 {
[%emt 0:00:06]} Nc6 {[%emt 0:00:18]} 3. Bc4 {[%emt 0:00:05]} Nf6 {[%emt 0:00:
00]} 4. d3 {[%emt 0:00:09]} h6 {[%emt 0:00:14]} 5. c3 {[%emt 0:03:27]} d6 {
[%emt 0:00:20]} 6. O-O {[%emt 0:02:01]} g5 $1 {[%emt 0:01:24] is currently
scoring better than 6...g6. C55: Two Knights: 4 d3, 4 d4 exd4 5 e5 and Max
Lange Attack.} 7. Re1 {[%emt 0:01:40]} Bg7 {[%emt 0:04:17]} 8. Bb3 {[%emt 0:00:
10]} Qe7 {[%emt 0:03:28] White has an edge.} 9. Na3 {[%emt 0:00:23]} Be6 {
[%emt 0:02:37]} 10. Nc4 {[%emt 0:04:13] [#]} g4 $146 {[%emt 0:06:43]} ({
Predecessor:} 10... Nh7 11. Ne3 O-O 12. h3 Na5 13. Bc2 Kh8 14. d4 Nc4 15. Nf5
Bxf5 16. exf5 Rae8 17. Qd3 Nb6 18. f6 Nxf6 19. dxe5 dxe5 20. Nxe5 Qd6 21. Nxf7+
{1-0 (21) Zhigalko,S (2572)-Seo,J (2470) Chess.com INT 2022}) 11. Nfd2 {
[%emt 0:01:31]} Qd7 {[%emt 0:02:12]} 12. Ne3 {[%emt 0:07:29]} h5 {[%emt 0:00:
00]} 13. Ndf1 {[%emt 0:01:40]} (13. Ba4 $14) 13... O-O-O $11 {[%emt 0:12:22]}
14. Ba4 {[%emt 0:12:49]} d5 {[%emt 0:08:33]} 15. exd5 {[%emt 0:11:43]} (15. Ng3
$11 {remains equal.}) 15... Nxd5 $17 {[%emt 0:02:00]} 16. Nc4 {[%emt 0:00:14]
[%cal Yc4e5]} f6 {[%emt 0:08:25]} (16... h4 $17) 17. Qe2 {[%emt 0:15:31]} (17.
d4 $15) 17... Bf5 {[%emt 0:06:55]} (17... Kb8 $17 18. Na5 Nde7) 18. d4 {
[%emt 0:13:06]} (18. Na5 $1 $11 Nde7 19. d4) 18... exd4 $15 {[%emt 0:03:14]}
19. cxd4 {[%emt 0:00:15]} Ndb4 {[%emt 0:07:19]} (19... Rhe8 $17 20. Qd1 Rxe1
21. Qxe1 Ndb4) 20. Na5 $1 $11 {[%emt 0:07:56]} Bd3 {[%emt 0:09:53] Against Qb5}
21. Bxc6 {[%emt 0:06:33]} (21. Nxc6 $11 Bxe2 22. Nxa7+ Kb8 23. Bxd7 Bxf1 24.
Rxf1) 21... bxc6 $17 {[%emt 0:00:10][%cal Yb7c6,Yc6c5,Yc5b4]} 22. Qd1 {[%emt 0:
01:22]} Qxd4 {[%emt 0:05:35]} 23. Qb3 {[%emt 0:03:44]} Qb6 {[%emt 0:00:00] And
now ...Bxf1 would win. Chess con chili.} 24. Bd2 {[%emt 0:03:11]} c5 {[%emt 0:
00:35]} 25. Bxb4 {[%emt 0:01:27]} cxb4 {[%emt 0:00:46]} (25... Qxb4 $2 26. Qe6+
Rd7 27. Rad1 $18) 26. Nc4 {[%emt 0:00:13]} Qb5 {[%emt 0:01:02]} 27. Rac1 {
[%emt 0:00:41]} Bh6 $1 {[%emt 0:01:30] A strong pair of Bishops.} 28. Nce3 {
[%emt 0:00:23]} (28. Rc3 $142 Bg6 29. a3) 28... Rd7 {[%emt 0:01:54] Active
counter play!} 29. Qe6 {[%emt 0:00:25]} f5 {[%emt 0:02:15]} ({Black should try
} 29... Rhd8 $17 30. Nd2 Bxe3 31. Qxe3 Qb6) 30. Red1 {[%emt 0:00:55][%cal
Yd1d3]} Kb8 {[%emt 0:00:34] Strongly threatening ...Bg5.} (30... Bxe3 $5 31.
Qxe3 a6 $15) 31. Rc5 {[%emt 0:00:36]} Qxc5 {[%emt 0:00:14]} 32. Qxd7 {[%emt 0:
00:06]} Be4 $36 {[%emt 0:00:47] Black has strong initiative.} 33. Nd5 {[%emt 0:
00:44][%cal Yd1d4]} h4 {[%emt 0:00:44]} (33... Bg5 $17 {White must now prevent
...Rd8.} 34. Qg7 Rd8 35. Qxg5 Rxd5) 34. Nf6 $2 {[%emt 0:00:00] [#]} (34. Rd4
$11 {and White is okay.} a5 35. b3) 34... Bc6 $1 $19 {[%emt 0:00:25]} 35. Qe6 {
[%emt 0:00:38] [#]} Bf4 {[%emt 0:00:23]} (35... Bg5 $1 $19 36. Nd5 g3 37. hxg3
hxg3 38. Nxg3 Rd8) 36. Nd7+ $17 {[%emt 0:01:17]} Bxd7 {[%emt 0:00:01]} 37. Qxd7
{[%emt 0:00:09]} g3 {[%emt 0:00:20]} 38. Qd4 {[%emt 0:00:00] Now White is
beyond hope.} (38. hxg3 $17 {only move.} hxg3 39. Qd4 gxf2+ 40. Kxf2 Qc2+ 41.
Rd2 Bxd2 42. Qxh8+ Kb7 43. Nxd2 Qxd2+ 44. Kg1) 38... gxf2+ $19 {[%emt 0:01:04]}
39. Qxf2 {[%emt 0:00:22]} Bd6 {[%emt 0:00:29]} 40. Rd2 {[%emt 0:00:48]} Re8 {
[%emt 0:00:31]} 41. Rc2 {[%emt 0:31:10]} Qd5 {[%emt 0:00:00] Threatens to win
with ...h3.} 42. b3 $2 {[%emt 0:00:00]} (42. h3 Qxa2 43. Qxh4) 42... h3 {
[%emt 0:00:00] aiming for ...hxg2. Black is clearly winning.} 43. g3 {[%emt 0:
00:00]} Re5 {[%emt 0:00:00]} 44. Rd2 {[%emt 0:00:00]} Qc6 {[%emt 0:00:00]
Weighted Error Value: White=0.57/Black=0.19 (very precise)} 0-1

[Event "44th Chess Olympiad Women 2022"]
[Site "Chennai"]
[Date "2022.07.30"]
[Round "2.2"]
[White "Atalik, Ekaterina"]
[Black "Muzychuk, Mariya"]
[Result "1-0"]
[WhiteElo "2422"]
[BlackElo "2540"]
[Annotator "TA"]
[PlyCount "87"]
[EventDate "2022.??.??"]
[TimeControl "60"]

{[%evp 11,87,6,0,0,35,0,0,0,0,-14,0,0,23,17,1,14,58,69,68,50,57,8,7,12,45,46,
75,78,75,69,236,229,219,229,217,215,526,508,485,222,295,185,210,220,208,213,
223,216,179,100,88,110,118,108,113,108,146,136,200,189,195,170,161,160,135,113,
93,92,305,300,1056,1001,12834,5293,5504,1335,1225,1027]} 1. c4 {[%emt 0:00:03]}
c6 {[%emt 0:02:53]} 2. Nc3 {[%emt 0:01:09]} d5 {[%emt 0:00:37]} 3. e3 {[%emt 0:
00:00]} Nf6 {[%emt 0:00:42]} 4. Nf3 {[%emt 0:00:14]} e6 {[%emt 0:00:28]} 5. b3
{[%emt 0:00:40]} Bd6 {[%emt 0:01:39]} 6. Bb2 {[%emt 0:00:59]} O-O {[%emt 0:00:
00]} 7. d4 {[%emt 0:01:02] A11: English Opening: 1...c6.} Ne4 {[%emt 0:08:03]}
8. Nxe4 {[%emt 0:04:59]} (8. Bd3 {feels hotter.} f5 9. O-O Nd7 10. Ne2) 8...
dxe4 {[%emt 0:00:05]} 9. Nd2 {[%emt 0:00:21] The position is equal.} f5 {
[%emt 0:00:29]} 10. Qc2 {[%emt 0:05:44]} Nd7 {[%emt 0:05:06]} 11. O-O-O {
[%emt 0:03:21]} Qe7 {[%emt 0:02:44]} 12. f3 {[%emt 0:04:12]} exf3 {[%emt 0:00:
00]} 13. gxf3 {[%emt 0:04:16] [#]} e5 $146 {[%emt 0:09:46]} ({Predecessor:} 
13... Nf6 14. Bd3 Ba3 15. c5 Bxb2+ 16. Kxb2 Nd5 17. Rhe1 Nb4 18. Qc4 Nxd3+ 19.
Qxd3 e5 {1-0 (41) Prusikin,M (2450)-Schneider,H (2220) Dortmund 1997}) 14. Bd3
{[%emt 0:02:10]} Nf6 {[%emt 0:00:31]} 15. Rde1 {[%emt 0:09:44]} (15. c5 Bc7 $11
) (15. Bxf5 {is more complex.} Bxf5 16. Qxf5 Nd5 17. Qd3) 15... a5 {[%emt 0:00:
00][%cal Ya5a4]} 16. Bxf5 {[%emt 0:14:54]} (16. e4 $14 exd4 17. e5 Bxe5 18. f4)
16... Bxf5 $11 {[%emt 0:01:17]} 17. Qxf5 {[%emt 0:00:09][%cal Rd4e5]} exd4 {
[%emt 0:01:47]} (17... Nd7 $5 {[%cal Rf8f5]} 18. Qe4 Ba3 $11) 18. exd4 {
[%emt 0:03:11][%cal Ye3d4,Yd4d5]} Qc7 {[%emt 0:00:09]} 19. Rhg1 {[%emt 0:09:33]
[%cal Yd4d5]} Rf7 {[%emt 0:05:42]} 20. d5 {[%emt 0:09:02] Bxf6 is the strong
threat.} Raf8 $2 {[%emt 0:21:28]} (20... Bb4 $14) 21. Qe6 $1 $18 {[%emt 0:10:
20]} Kh8 {[%emt 0:01:07]} 22. Ne4 $1 {[%emt 0:00:54]} Nxe4 {[%emt 0:04:33]} 23.
Rxe4 {[%emt 0:05:24]} (23. fxe4 $6 Bxh2 24. Rg2 Re7 $14) ({But not} 23. Qxe4 $6
cxd5 24. Qxd5 Rd7 $16) 23... Bf4+ $2 {[%emt 0:05:08]} (23... Bc5 24. Rg2 cxd5
25. Qxd5 Qd6 26. Qxd6 Bxd6) 24. Kb1 {[%emt 0:00:51]} cxd5 {[%emt 0:00:14] [#]}
25. Qxd5 {[%emt 0:01:55]} (25. Qxf7 $142 $3 Qxf7 26. Rxf4 $1) 25... Bh6 {
[%emt 0:03:48]} 26. Be5 {[%emt 0:02:52]} Qc8 {[%emt 0:01:09]} 27. Bd6 {[%emt 0:
03:42]} ({Don't play} 27. Qxa5 $6 Rxf3 28. Qc7 Qxc7 29. Bxc7 Kg8 $16) 27... Rf5
{[%emt 0:01:48]} 28. Qe6 {[%emt 0:00:00]} Qxe6 {[%emt 0:00:42]} 29. Rxe6 {
[%emt 0:00:00]} Rd8 {[%emt 0:00:00]} 30. Be5 {[%emt 0:01:05]} ({Better is} 30.
Rge1 $18 {Strongly threatening Re8+.} Kg8 31. Re8+ Rxe8 32. Rxe8+ Kf7 33. Re7+
Kf6 34. Rxb7) 30... Kg8 $16 {[%emt 0:00:14]} 31. f4 {[%emt 0:01:24]} g6 {
[%emt 0:00:47]} 32. Rg4 $1 {[%emt 0:00:51]} Rd7 {[%emt 0:00:48] Against Re7}
33. Kc2 {[%emt 0:00:29]} Rf8 {[%emt 0:00:21]} 34. h4 {[%emt 0:00:28] Threatens
to win with h5.} Rfd8 {[%emt 0:00:32]} (34... Rf5 $16 {was necessary.} 35. Rb6
Kf7) 35. Rg2 {[%emt 0:00:00]} Bg7 {[%emt 0:00:39]} 36. h5 {[%emt 0:00:29]} gxh5
{[%emt 0:00:31]} 37. f5 {[%emt 0:00:23][%cal Yf4f5,Yf5f6] aiming for f6.} Kf8 {
[%emt 0:00:00]} 38. f6 $36 {[%emt 0:00:06] White is in control. White is much
more active.} Bh6 {[%emt 0:00:16] [#]} 39. Bc3 {[%emt 0:00:19] Prevents Rd2+.
And now f7 would win.} Kf7 $2 {[%emt 0:01:02] [#]} (39... Re8 $16 {was worth a
try.} 40. Rb6 Re4) 40. Re5 $1 $18 {[%emt 0:00:23]} Bf4 $2 {[%emt 0:00:28]} (
40... Rg8 41. Rxg8 Kxg8 42. Rxh5 Bf4 43. Rxa5 (43. Bxa5 h6 $18) 43... Kf7) 41.
Rg7+ {[%emt 0:31:06] White is clearly winning.} Kf8 {[%emt 0:01:15]} 42. Ree7 {
[%emt 0:00:00]} Rd1 {[%emt 0:06:08]} 43. Rxh7 {[%emt 0:03:41]} (43. Bxa5 $142
b6 44. Ref7+ Ke8 45. Bb4 R8d2+ 46. Bxd2 Rxd2+ 47. Kc3 Rxa2 48. Rb7) 43... Rg1 {
[%emt 0:01:05]} 44. Reg7 {[%emt 0:00:00] Weighted Error Value: White=0.18 
(very precise) /Black=0.38} 1-0